bitfinex/quotes_BTCUSD_20240803
["timestamp","ask_amount","ask_price","bid_price","bid_amount"]
[1722717007066,0.00083,60702.0,60701.0,1.89932389]
[1722717007264,0.00083,60702.0,60701.0,2.23580689]
[1722717007486,0.00083,60702.0,60701.0,2.28643696]
[1722717007699,0.00083,60702.0,60701.0,2.23780689]
[1722717007895,0.00083,60702.0,60701.0,2.29445727]
[1722717008361,0.00083,60702.0,60701.0,2.27580689]
[1722717008550,0.00083,60702.0,60701.0,2.31836604]
[1722717008925,0.00083,60702.0,60701.0,2.29836604]
[1722717009225,0.00083,60702.0,60701.0,2.23780689]
[1722717009428,0.00083,60702.0,60701.0,2.22380689]
[1722717009667,0.00083,60702.0,60701.0,2.22580689]
[1722717009874,0.00083,60702.0,60701.0,2.25380689]
[1722717010133,0.00083,60702.0,60701.0,2.23980689]
[1722717010491,0.00083,60702.0,60701.0,1.9182554]
[1722717010645,0.00083,60702.0,60701.0,1.9422554]
[1722717010857,0.00083,60702.0,60701.0,1.9442554]
[1722717011071,0.00083,60702.0,60701.0,1.9342554]
[1722717011274,0.00083,60702.0,60701.0,1.9442554]
[1722717011688,0.00083,60702.0,60701.0,2.2737384]
[1722717011955,1e-06,60702.0,60701.0,2.6232214]
[1722717012147,0.00090437,60704.0,60703.0,1.640528]
[1722717012334,0.00090437,60704.0,60703.0,2.23575189]
[1722717013099,0.00090437,60704.0,60703.0,2.22375189]
[1722717013297,0.00090437,60704.0,60703.0,1.90827889]
[1722717014237,0.00090437,60704.0,60703.0,1.92227889]
[1722717014742,0.00090437,60704.0,60703.0,1.77637889]
[1722717015774,0.00090437,60704.0,60703.0,0.522209]
[1722717015997,0.00090437,60704.0,60703.0,0.851682]
[1722717016407,0.00090437,60704.0,60703.0,0.522209]
[1722717016627,0.00090437,60704.0,60703.0,0.851682]
[1722717016861,0.00090437,60704.0,60703.0,0.494209]
[1722717017100,0.00090437,60704.0,60703.0,0.507209]
[1722717017357,0.00090437,60704.0,60703.0,0.517209]
[1722717017571,0.00090437,60704.0,60703.0,1.176155]
[1722717017987,0.00090437,60704.0,60703.0,0.846682]
[1722717019771,0.00090437,60704.0,60703.0,1.322055]
[1722717020028,0.00090437,60704.0,60703.0,1.48780589]
[1722717020272,0.00090437,60704.0,60703.0,1.81727889]
[1722717020494,0.00090437,60704.0,60703.0,1.91727889]
[1722717020699,0.00090437,60704.0,60703.0,1.91927889]
[1722717020831,0.00090437,60704.0,60703.0,1.91727889]
[1722717021031,0.00090437,60704.0,60703.0,2.23375189]
[1722717021400,0.010219,60706.0,60705.0,1.514579]
[1722717021613,0.010219,60711.0,60710.0,0.496152]
[1722717021731,0.010219,60711.0,60710.0,1.89610789]
[1722717021933,0.010219,60711.0,60710.0,1.90610789]
[1722717022137,0.010219,60711.0,60710.0,1.89610789]
[1722717022390,0.010219,60711.0,60710.0,2.22554289]
[1722717022580,0.010219,60711.0,60710.0,2.22354289]
[1722717022781,0.010219,60711.0,60710.0,1.89410789]
[1722717022985,0.010219,60711.0,60710.0,1.89610789]
[1722717023241,0.010219,60711.0,60710.0,1.97902594]
[1722717023466,0.010219,60711.0,60710.0,1.99302594]
[1722717023934,0.010219,60711.0,60710.0,2.00702594]
[1722717024156,0.010219,60711.0,60710.0,2.35046094]
[1722717024386,0.010219,60711.0,60710.0,2.00502594]
[1722717024622,0.010219,60711.0,60710.0,1.92410789]
[1722717024875,0.010219,60711.0,60710.0,1.93810789]
[1722717025199,0.010219,60711.0,60710.0,1.94810376]
[1722717025421,0.010219,60711.0,60710.0,2.28753876]
[1722717027038,0.010219,60711.0,60710.0,1.94610376]
[1722717027437,0.010219,60711.0,60710.0,1.94810376]
[1722717027633,0.010219,60711.0,60710.0,2.27553876]
[1722717028018,0.010219,60711.0,60710.0,1.94610376]
[1722717028283,0.010219,60711.0,60710.0,2.27753876]
[1722717028668,0.010219,60711.0,60710.0,2.28753876]
[1722717028821,0.0360484,60711.0,60710.0,2.32563876]
[1722717029022,0.0360484,60711.0,60710.0,2.32763876]
[1722717029854,0.0360484,60711.0,60710.0,1.99620376]
[1722717030441,0.0360484,60711.0,60710.0,2.32563876]
[1722717030647,0.0360484,60711.0,60710.0,1.99620376]
[1722717030873,0.0360484,60711.0,60710.0,1.52086876]
[1722717031048,0.0360484,60711.0,60710.0,1.42086876]
[1722717031248,0.0360484,60711.0,60710.0,1.25511787]
[1722717031453,0.010219,60711.0,60710.0,1.25511787]
[1722717032614,0.010219,60711.0,60710.0,1.35511787]
[1722717032813,0.010219,60711.0,60710.0,1.345122]
[1722717033015,0.010219,60711.0,60710.0,0.915687]
[1722717033016,0.151619,60711.0,60710.0,0.915687]
[1722717033827,0.151619,60711.0,60710.0,1.203122]
[1722717034076,0.151619,60711.0,60710.0,1.209122]
[1722717034299,0.03605167,60711.0,60710.0,1.212122]
[1722717034957,0.03605167,60711.0,60710.0,1.203122]
[1722717035130,0.03605167,60711.0,60710.0,0.873687]
[1722717035332,0.03605167,60711.0,60710.0,0.0611]
[1722717035333,0.34216567,60711.0,60710.0,0.0611]
[1722717035568,0.975191,60711.0,60710.0,0.0611]
[1722717035755,1.14094189,60711.0,60710.0,0.0611]
[1722717036184,1.14094189,60711.0,60710.0,0.0751]
[1722717036381,0.81151289,60711.0,60710.0,0.0751]
[1722717036538,0.82151289,60711.0,60710.0,0.0611]
[1722717036942,0.81151289,60711.0,60710.0,0.0661]
[1722717037144,0.81151289,60711.0,60710.0,0.0551]
[1722717037346,0.48208389,60711.0,60710.0,0.0551]
[1722717037561,0.81151289,60711.0,60710.0,0.0691]
[1722717037764,0.48208389,60711.0,60710.0,0.0551]
[1722717037966,0.48208389,60711.0,60710.0,0.0571]
[1722717038205,0.48208389,60711.0,60710.0,0.079283]
[1722717038957,0.8373491,60711.0,60710.0,0.0571]
[1722717040337,1.16086413,60711.0,60710.0,0.0571]
[1722717040538,1.49029313,60711.0,60710.0,0.0571]
[1722717040765,1.51029313,60711.0,60710.0,0.0571]
[1722717040978,0.1414,60696.0,60691.0,0.330448]
[1722717041181,0.1414,60696.0,60695.0,0.49750831]
[1722717041354,0.1414,60696.0,60694.0,0.16476]
[1722717041552,0.1414,60696.0,60693.0,0.164763]
[1722717041767,0.1414,60696.0,60694.0,0.05117393]
[1722717042271,0.1414,60696.0,60695.0,0.164758]
[1722717042473,0.1414,60696.0,60694.0,0.164758]
[1722717042688,0.1414,60696.0,60692.0,0.164765]
[1722717042883,0.1414,60696.0,60691.0,0.000913]
[1722717043088,0.1414,60696.0,60692.0,0.19946373]
[1722717043376,0.1414,60696.0,60692.0,0.03469873]
[1722717043550,0.1424,60696.0,60692.0,0.03469873]
[1722717043754,0.1444,60696.0,60692.0,0.03469873]
[1722717043979,0.1434,60696.0,60692.0,0.03469873]
[1722717044153,0.1414,60696.0,60692.0,0.03469873]
[1722717044382,0.1414,60696.0,60693.0,0.0649785]
[1722717044589,0.164759,60695.0,60693.0,0.0649785]
[1722717044808,0.16724157,60696.0,60692.0,0.003]
[1722717044809,0.33199657,60696.0,60692.0,0.003]
[1722717045024,0.16724157,60696.0,60692.0,0.003]
[1722717045507,0.49675457,60696.0,60692.0,0.003]
[1722717045730,0.49675457,60696.0,60691.0,0.000913]
[1722717045731,0.16724157,60696.0,60691.0,0.000913]
[1722717045956,0.16724157,60696.0,60692.0,0.03499953]
[1722717046161,0.16724157,60696.0,60692.0,0.03599953]
[1722717046575,0.33199657,60696.0,60692.0,0.03499953]
[1722717046780,0.16724157,60696.0,60693.0,0.05467558]
[1722717046984,0.50075557,60696.0,60693.0,0.05467558]
[1722717047184,0.50075557,60696.0,60691.0,0.000913]
[1722717047185,0.164758,60695.0,60691.0,0.000913]
[1722717047564,0.164761,60694.0,60691.0,0.000913]
[1722717047796,0.1434,60696.0,60691.0,0.000913]
[1722717048161,0.164758,60695.0,60691.0,0.000913]
[1722717048369,0.1454,60696.0,60691.0,0.000913]
[1722717048370,0.16575089,60694.0,60691.0,0.000913]
[1722717048528,0.82383,60692.0,60691.0,0.000913]
[1722717048730,1.40001289,60692.0,60691.0,0.000913]
[1722717048938,1.46091289,60692.0,60691.0,0.000913]
[1722717049346,1.47091289,60692.0,60691.0,0.000913]
[1722717049776,1.47091289,60692.0,60673.0,0.49750831]
[1722717049777,0.49438,60682.0,60673.0,0.49750831]
[1722717049980,1.13151789,60682.0,60673.0,0.49750831]
[1722717050226,1.47110489,60682.0,60668.0,0.16483]
[1722717050429,1.47110489,60682.0,60665.0,0.329675]
[1722717050632,1.46110489,60682.0,60669.0,0.164828]
[1722717050827,1.46110489,60682.0,60670.0,0.164825]
[1722717051054,1.46310489,60682.0,60681.0,0.001913]
[1722717051202,1.57310489,60682.0,60681.0,0.000913]
[1722717051408,1.67910489,60682.0,60681.0,0.000913]
[1722717051650,1.72410489,60682.0,60681.0,0.001913]
[1722717051849,1.72210489,60682.0,60681.0,0.000913]
[1722717052253,1.74795636,60682.0,60681.0,0.000913]
[1722717052452,1.72210489,60682.0,60681.0,0.000913]
[1722717052857,1.89590489,60682.0,60681.0,0.000913]
[1722717053232,1.00593089,60682.0,60681.0,0.001913]
[1722717053436,1.01193089,60682.0,60681.0,0.001913]
[1722717053670,1.01193089,60682.0,60681.0,0.002913]
[1722717053963,1.33351789,60682.0,60681.0,0.001913]
[1722717054165,1.00393089,60682.0,60681.0,0.001913]
[1722717054379,1.01393089,60682.0,60681.0,0.002913]
[1722717054588,1.02398594,60682.0,60681.0,0.002913]
[1722717054791,1.02198594,60682.0,60681.0,0.001913]
[1722717054992,1.02398594,60682.0,60681.0,0.002913]
[1722717055169,1.37942374,60682.0,60681.0,0.002913]
[1722717055383,1.43242374,60682.0,60681.0,0.002913]
[1722717055505,1.76201074,60682.0,60681.0,0.002913]
[1722717055723,1.73615994,60682.0,60681.0,0.002913]
[1722717056144,1.73415994,60682.0,60681.0,0.001913]
[1722717056340,1.73415994,60682.0,60657.0,0.49750831]
[1722717056341,0.164835,60667.0,60657.0,0.49750831]
[1722717056550,0.329657,60669.0,60659.0,0.329707]
[1722717056761,0.16575089,60668.0,60661.0,0.329697]
[1722717056969,0.16575089,60668.0,60663.0,0.164843]
[1722717057171,0.1418,60676.0,60669.0,0.329654]
[1722717057375,0.17095505,60682.0,60670.0,0.08291805]
[1722717057575,0.08247439,60681.0,60670.0,0.08291805]
[1722717057819,0.0609,60686.0,60682.0,0.164792]
[1722717058020,0.16732528,60685.0,60683.0,0.22115343]
[1722717058257,0.16732528,60685.0,60683.0,0.05636343]
[1722717058496,0.16732528,60685.0,60683.0,0.22115343]
[1722717058497,0.00157439,60685.0,60683.0,0.22115343]
[1722717058730,0.00157439,60685.0,60683.0,0.05636343]
[1722717058977,0.00157439,60685.0,60676.0,0.0643]
[1722717058978,0.00157439,60687.0,60686.0,0.164782]
[1722717059217,0.164789,60684.0,60676.0,0.393915]
[1722717059448,0.24822528,60683.0,60678.0,0.164802]
[1722717059695,0.24822528,60683.0,60678.0,0.164804]
[1722717059930,0.08291805,60679.0,60670.0,0.001]
[1722717060171,0.16481,60676.0,60670.0,0.0394962]
[1722717060434,0.16575089,60676.0,60670.0,0.164825]
[1722717060685,0.164809,60677.0,60661.0,0.0643]
[1722717060686,0.49537589,60675.0,60668.0,0.16483]
[1722717060922,0.164816,60674.0,60668.0,0.16483]
[1722717061154,0.33056689,60674.0,60668.0,0.16483]
[1722717061377,0.33056689,60674.0,60659.0,0.329711]
[1722717061378,0.164826,60670.0,60657.0,0.0802]
[1722717061642,0.16575089,60670.0,60658.0,0.01652526]
[1722717061848,0.08391805,60679.0,60665.0,0.329679]
[1722717061849,0.001,60679.0,60665.0,0.329679]
[1722717062090,0.33055489,60678.0,60672.0,0.16482]
[1722717062319,0.16575089,60678.0,60670.0,0.006]
[1722717062728,0.16575089,60678.0,60671.0,0.00868253]
[1722717062967,0.16575089,60678.0,60669.0,0.329652]
[1722717063174,0.16575089,60678.0,60667.0,0.01652526]
[1722717063175,0.003,60679.0,60678.0,0.494412]
[1722717063385,0.003,60679.0,60678.0,1.214028]
[1722717063612,0.001,60679.0,60678.0,1.214028]
[1722717064216,0.01006723,60689.0,60678.0,0.390008]
[1722717064399,0.16478,60687.0,60681.0,0.164795]
[1722717064605,0.00157439,60686.0,60684.0,0.164787]
[1722717064815,0.00157439,60687.0,60681.0,0.01652526]
[1722717065046,0.00157439,60692.0,60688.0,0.164776]
[1722717065247,0.00157439,60692.0,60681.0,0.01652526]
[1722717065248,0.33051989,60691.0,60684.0,0.329574]
[1722717065511,0.41959491,60693.0,60689.0,0.164774]
[1722717065512,0.00157439,60690.0,60689.0,0.164774]
[1722717065763,0.00157439,60692.0,60689.0,0.34607426]
[1722717065976,0.16633239,60695.0,60690.0,0.164771]
[1722717066191,0.33208328,60695.0,60689.0,0.2016458]
[1722717066400,0.16732528,60695.0,60694.0,0.16476]
[1722717066599,0.16575089,60695.0,60694.0,0.16476]
[1722717067160,0.0801,60702.0,60692.0,0.329531]
[1722717067362,0.0801,60702.0,60689.0,0.0368718]
[1722717067363,0.00157439,60701.0,60693.0,0.06959418]
[1722717067565,0.164771,60690.0,60689.0,0.01652526]
[1722717067746,0.164771,60690.0,60675.0,0.0604]
[1722717067747,0.31235089,60690.0,60675.0,0.01652526]
[1722717067943,0.08291805,60685.0,60676.0,0.50742084]
[1722717068147,0.08291805,60685.0,60676.0,0.00991253]
[1722717068344,0.16575089,60685.0,60676.0,0.00991253]
[1722717068567,0.16575089,60685.0,60675.0,0.01652526]
[1722717068772,0.164794,60682.0,60675.0,0.18133626]
[1722717069377,0.16575089,60681.0,60676.0,0.003]
[1722717069576,0.39432505,60677.0,60676.0,0.003]
[1722717069773,0.80677189,60677.0,60676.0,0.003]
[1722717069974,0.94380773,60677.0,60676.0,0.003]
[1722717070199,1.27342173,60677.0,60676.0,0.003]
[1722717070399,0.164822,60672.0,60664.0,0.329681]
[1722717070600,0.31235089,60677.0,60664.0,0.32968]
[1722717070831,0.13704093,60676.0,60665.0,0.08291805]
[1722717071023,0.24585089,60677.0,60670.0,0.329648]
[1722717071238,0.02585052,60674.0,60670.0,0.164825]
[1722717071493,0.164826,60670.0,60664.0,0.164841]
[1722717071619,0.164818,60673.0,60667.0,0.164833]
[1722717071827,0.164818,60673.0,60668.0,0.164831]
[1722717072036,0.329652,60670.0,60669.0,0.0494509]
[1722717072253,0.16575089,60672.0,60658.0,0.0604]
[1722717072456,0.0801,60677.0,60665.0,0.08291805]
[1722717072689,0.0801,60683.0,60670.0,0.329652]
[1722717072905,0.0801,60683.0,60666.0,0.0082918]
[1722717072906,0.329598,60680.0,60668.0,0.32966]
[1722717073111,0.329621,60676.0,60666.0,0.0082918]
[1722717073244,0.164827,60670.0,60664.0,0.01652526]
[1722717073448,0.16575089,60675.0,60660.0,0.329702]
[1722717073449,0.329642,60672.0,60660.0,0.329702]
[1722717073685,0.0784,60668.0,60658.0,0.0604]
[1722717073874,0.243233,60668.0,60661.0,0.164849]
[1722717074240,0.164836,60667.0,60662.0,0.0225249]
[1722717074444,0.226534,60667.0,60662.0,0.0225249]
[1722717074647,0.0617,60667.0,60662.0,0.1873719]
[1722717074859,0.0617,60667.0,60663.0,0.07715233]
[1722717075076,0.02585259,60666.0,60663.0,0.07715233]
[1722717075276,0.02585259,60666.0,60663.0,0.24199733]
[1722717075487,0.02585259,60666.0,60664.0,0.164841]
[1722717075884,0.02585259,60666.0,60664.0,0.16484]
[1722717076214,0.02585259,60666.0,60663.0,0.164844]
[1722717076421,0.02585259,60666.0,60657.0,0.01652526]
[1722717076621,0.32967,60667.0,60659.0,0.164855]
[1722717076866,0.243233,60668.0,60658.0,0.329713]
[1722717077041,0.164834,60667.0,60660.0,0.329703]
[1722717077417,0.0617,60672.0,60658.0,0.08291805]
[1722717077618,0.0784,60674.0,60670.0,0.164825]
[1722717077752,0.16575089,60673.0,60659.0,0.02423485]
[1722717077951,0.16575089,60673.0,60668.0,0.16483]
[1722717078400,0.16575089,60673.0,60666.0,0.329669]
[1722717078401,0.00968808,60677.0,60667.0,0.14561805]
[1722717078562,0.16575089,60681.0,60676.0,0.164807]
[1722717078765,0.13702833,60680.0,60675.0,0.164812]
[1722717078999,0.164804,60678.0,60670.0,0.001]
[1722717079204,0.08806051,60682.0,60668.0,0.03928707]
[1722717079205,0.49536489,60677.0,60668.0,0.03928707]
[1722717079456,0.164826,60670.0,60668.0,0.01652526]
[1722717079625,0.164823,60671.0,60668.0,0.01652526]
[1722717080206,0.16575089,60677.0,60662.0,0.329692]
[1722717080207,0.30187055,60670.0,60664.0,0.164841]
[1722717080386,0.164829,60669.0,60663.0,0.164844]
[1722717080627,0.164829,60669.0,60664.0,0.07544238]
[1722717080826,0.572886,60669.0,60668.0,0.001]
[1722717081061,0.902543,60669.0,60668.0,0.001]
[1722717081264,0.0784,60669.0,60664.0,0.164841]
[1722717081467,0.0784,60669.0,60660.0,0.01652526]
[1722717081468,0.0784,60669.0,60665.0,0.164839]
[1722717081673,0.0784,60669.0,60666.0,0.0494528]
[1722717082281,0.243228,60669.0,60666.0,0.0494528]
[1722717082698,0.16748955,60682.0,60666.0,0.0494528]
[1722717082699,0.0784,60674.0,60666.0,0.0494528]
[1722717082841,0.30278989,60673.0,60669.0,0.164828]
[1722717083081,0.164806,60678.0,60670.0,0.02142808]
[1722717083276,0.30278141,60677.0,60673.0,0.164817]
[1722717083623,0.4083,60680.0,60673.0,0.329633]
[1722717083624,0.243499,60680.0,60673.0,0.329633]
[1722717083822,0.243499,60680.0,60674.0,0.21503843]
[1722717083823,0.02585064,60677.0,60674.0,0.21503843]
[1722717084040,0.02585064,60677.0,60674.0,0.05022443]
[1722717084242,0.16575089,60676.0,60670.0,0.001]
[1722717084449,0.16575089,60676.0,60668.0,0.01652526]
[1722717084450,0.164817,60674.0,60668.0,0.01652526]
[1722717084651,0.33056889,60673.0,60669.0,0.05110343]
[1722717084935,0.33056889,60673.0,60668.0,0.01652526]
[1722717084936,0.329641,60672.0,60668.0,0.01652526]
[1722717085156,0.164824,60671.0,60668.0,0.01652526]
[1722717085353,0.001,60669.0,60668.0,0.01652526]
[1722717085782,0.164823,60671.0,60668.0,0.01652526]
[1722717086325,0.16775089,60673.0,60668.0,0.01652526]
[1722717086560,0.164831,60668.0,60662.0,0.164847]
[1722717086909,0.164837,60666.0,60663.0,0.0824266]
[1722717087575,0.02585268,60667.0,60663.0,0.2472686]
[1722717088135,0.164845,60663.0,60662.0,0.001]
[1722717088328,0.494535,60663.0,60662.0,0.001]
[1722717088739,1.06867589,60663.0,60662.0,0.001]
[1722717089168,0.164861,60657.0,60656.0,0.000913]
[1722717089392,0.824305,60657.0,60656.0,0.000913]
[1722717089595,0.164861,60657.0,60656.0,0.000913]
[1722717089962,0.494583,60657.0,60656.0,0.000913]
[1722717090178,1.06875589,60657.0,60656.0,0.000913]
[1722717090373,2.06158016,60657.0,60656.0,0.000913]
[1722717090529,2.06158016,60657.0,60656.0,0.005087]
[1722717090530,2.08158016,60657.0,60656.0,0.005087]
[1722717090754,2.08158016,60657.0,60646.0,0.010208]
[1722717090755,0.142,60648.0,60646.0,0.010208]
[1722717091116,0.49477,60634.0,60630.0,0.010208]
[1722717091327,0.79766256,60634.0,60630.0,0.010208]
[1722717091467,0.66052089,60634.0,60630.0,0.010208]
[1722717092281,0.68638933,60634.0,60630.0,0.010208]
[1722717092687,1.01623633,60634.0,60630.0,0.010208]
[1722717092891,1.02523633,60634.0,60633.0,0.011208]
[1722717093066,0.52963844,60634.0,60633.0,0.011208]
[1722717093265,0.173923,60634.0,60633.0,0.011208]
[1722717093464,0.01,60634.0,60633.0,0.011208]
[1722717093772,0.007,60634.0,60633.0,0.011208]
[1722717093970,0.017,60634.0,60633.0,0.177134]
[1722717094199,0.017,60634.0,60633.0,0.8557776]
[1722717094405,0.017,60634.0,60633.0,1.1856306]
[1722717095365,0.01,60634.0,60633.0,1.1846306]
[1722717095559,0.01,60634.0,60633.0,0.176134]
[1722717095808,0.021,60634.0,60633.0,0.505987]
[1722717096005,0.021,60634.0,60633.0,0.83484]
[1722717096006,0.005,60634.0,60633.0,0.83484]
[1722717096232,0.001,60634.0,60633.0,0.185134]
[1722717096437,0.001,60634.0,60633.0,0.88452831]
[1722717096438,0.02786595,60634.0,60633.0,0.88452831]
[1722717096635,0.02786595,60634.0,60633.0,1.20108313]
[1722717096810,0.02786595,60634.0,60633.0,1.20508313]
[1722717096811,0.002,60634.0,60633.0,1.20508313]
[1722717096972,0.001,60634.0,60633.0,1.19108313]
[1722717097170,0.001,60634.0,60633.0,1.19808313]
[1722717097372,0.002,60634.0,60633.0,1.19808313]
[1722717097943,0.001,60634.0,60633.0,1.19408313]
[1722717098287,0.001,60634.0,60633.0,1.77108702]
[1722717098488,0.001,60634.0,60633.0,1.93578702]
[1722717098689,0.00157439,60653.0,60648.0,0.164884]
[1722717098894,0.16732528,60653.0,60649.0,0.0494661]
[1722717099319,0.164873,60653.0,60649.0,0.0494661]
[1722717099553,0.00157439,60652.0,60649.0,0.0494661]
[1722717099902,0.00157439,60652.0,60644.0,0.18142026]
[1722717100103,0.16575089,60651.0,60649.0,0.001]
[1722717100294,1.16416,60650.0,60649.0,0.001]
[1722717100562,1.16416,60650.0,60637.0,0.01652526]
[1722717100563,0.164894,60645.0,60637.0,0.01652526]
[1722717100694,0.49551089,60650.0,60648.0,0.001]
[1722717100695,0.164883,60649.0,60648.0,0.001]
[1722717100908,0.03386253,60653.0,60648.0,0.001]
[1722717100909,0.007,60652.0,60648.0,0.001]
[1722717101117,0.00157439,60651.0,60649.0,0.164882]
[1722717101288,0.007,60652.0,60648.0,0.001]
[1722717101289,0.007,60652.0,60650.0,0.02239013]
[1722717101704,0.007,60652.0,60648.0,0.001]
[1722717101910,0.007,60652.0,60650.0,0.164879]
[1722717102130,0.008,60653.0,60650.0,0.16488]
[1722717102332,0.008,60653.0,60649.0,0.329766]
[1722717102533,0.006,60650.0,60649.0,0.495649]
[1722717102730,0.006,60650.0,60649.0,0.165883]
[1722717102931,0.013,60650.0,60649.0,0.495649]
[1722717103330,0.16643939,60656.0,60649.0,0.329766]
[1722717103530,0.164869,60654.0,60649.0,0.164882]
[1722717103737,0.009,60653.0,60650.0,0.0824428]
[1722717103987,0.003,60653.0,60650.0,0.0824428]
[1722717104635,0.003,60653.0,60651.0,0.164876]
[1722717105449,0.003,60653.0,60652.0,0.164875]
[1722717105647,0.0813,60657.0,60652.0,0.164875]
[1722717105847,0.0813,60657.0,60650.0,0.0824428]
[1722717105848,0.006,60656.0,60653.0,0.01723443]
[1722717106264,0.170866,60656.0,60653.0,0.01723443]
[1722717106464,0.164866,60656.0,60653.0,0.01723443]
[1722717106832,0.00990933,60662.0,60656.0,0.164862]
[1722717107012,0.005,60656.0,60654.0,0.164868]
[1722717107236,0.005,60656.0,60653.0,0.001]
[1722717107397,0.169864,60656.0,60653.0,0.001]
[1722717107602,0.175864,60656.0,60653.0,0.001]
[1722717107901,0.03686051,60656.0,60653.0,0.165871]
[1722717108352,0.03686051,60656.0,60653.0,0.001]
[1722717108525,0.329734,60655.0,60647.0,0.164887]
[1722717108725,0.16487,60654.0,60648.0,0.18920623]
[1722717109132,0.329734,60655.0,60648.0,0.02432123]
[1722717109390,0.164869,60654.0,60653.0,0.001]
[1722717109557,0.494608,60654.0,60653.0,0.001]
[1722717109922,0.503608,60654.0,60653.0,0.001]
[1722717110118,0.338739,60654.0,60647.0,0.164888]
[1722717110513,0.005,60654.0,60651.0,0.164877]
[1722717110684,0.005,60654.0,60651.0,0.164875]
[1722717110685,0.009,60654.0,60651.0,0.164875]
[1722717111451,0.009,60654.0,60653.0,0.001]
[1722717111452,0.014,60654.0,60653.0,0.001]
[1722717111651,0.014,60654.0,60653.0,0.0505646]
[1722717111900,0.164865,60656.0,60653.0,0.0495646]
[1722717112271,0.009,60654.0,60653.0,0.0495646]
[1722717112480,0.173869,60654.0,60653.0,0.0495646]
[1722717112796,0.16987,60654.0,60651.0,0.001]
[1722717112999,0.16987,60654.0,60649.0,0.164883]
[1722717113000,0.164867,60655.0,60649.0,0.164883]
[1722717113194,0.164867,60655.0,60650.0,0.0494661]
[1722717113395,0.005,60654.0,60653.0,0.001]
[1722717113946,0.009,60654.0,60653.0,0.001]
[1722717114092,0.173869,60654.0,60653.0,0.05121113]
[1722717114515,0.009,60654.0,60653.0,0.05121113]
[1722717114764,0.168869,60654.0,60653.0,0.05021113]
[1722717114958,0.168869,60654.0,60644.0,0.34631326]
[1722717114959,0.164875,60652.0,60651.0,0.001]
[1722717115164,0.66037589,60652.0,60651.0,0.001]
[1722717115310,0.329788,60645.0,60642.0,0.4684]
[1722717115506,0.164892,60646.0,60643.0,0.04684]
[1722717116136,0.004,60652.0,60643.0,0.04684]
[1722717116335,0.004,60652.0,60645.0,0.329787]
[1722717116539,0.004,60652.0,60649.0,0.164881]
[1722717116739,0.004,60652.0,60650.0,0.0494657]
[1722717116968,0.004,60652.0,60650.0,0.2143457]
[1722717117175,0.004,60652.0,60650.0,0.0494657]
[1722717117575,0.02986195,60652.0,60650.0,0.0494657]
[1722717117845,0.004,60652.0,60650.0,0.0494657]
[1722717118030,0.004,60652.0,60651.0,0.05021153]
[1722717118260,0.33963763,60657.0,60651.0,0.05021153]
[1722717118474,0.004,60652.0,60651.0,0.05021153]
[1722717119210,0.16644139,60655.0,60651.0,0.05021153]
[1722717119416,0.00157439,60655.0,60652.0,0.0494657]
[1722717119612,0.16644239,60655.0,60652.0,0.0494657]
[1722717119816,0.00157439,60655.0,60652.0,0.0494657]
[1722717120357,0.32973,60656.0,60652.0,0.0494657]
[1722717120565,0.164871,60654.0,60652.0,0.0494657]
[1722717120770,0.17977363,60657.0,60653.0,0.01122657]
[1722717120981,0.164849,60662.0,60653.0,0.01122657]
[1722717121218,0.00157439,60661.0,60654.0,0.03898496]
[1722717121418,0.164856,60659.0,60654.0,0.20385296]
[1722717121620,0.164866,60655.0,60654.0,0.03898496]
[1722717121835,0.164866,60655.0,60653.0,0.01122657]
[1722717121836,0.005,60654.0,60653.0,0.01122657]
[1722717122029,0.32973,60656.0,60648.0,0.32977]
[1722717122238,0.16644139,60655.0,60650.0,0.164879]
[1722717122440,0.16487,60654.0,60649.0,0.164882]
[1722717122657,0.16487,60654.0,60647.0,0.329774]
[1722717122943,0.00157439,60653.0,60645.0,0.01652526]
[1722717123183,0.00157439,60653.0,60635.0,0.0634]
[1722717123184,0.164891,60646.0,60635.0,0.0634]
[1722717123387,0.005,60655.0,60635.0,0.0634]
[1722717123388,0.00157439,60651.0,60643.0,0.04684]
[1722717123611,0.1,60660.0,60650.0,0.32976]
[1722717123612,0.004,60654.0,60650.0,0.32976]
[1722717123795,0.004,60654.0,60644.0,0.1471975]
[1722717123796,0.004,60654.0,60653.0,0.494616]
[1722717124123,0.005,60654.0,60653.0,0.001]
[1722717124326,0.005,60654.0,60653.0,0.495616]
[1722717124536,0.16643239,60658.0,60653.0,0.164872]
[1722717124695,0.00157439,60658.0,60653.0,0.04684]
[1722717124894,0.169869,60654.0,60653.0,0.04684]
[1722717125099,0.169869,60654.0,60649.0,0.164882]
[1722717125296,0.005,60654.0,60638.0,0.0634]
[1722717125495,0.30194766,60653.0,60648.0,0.164885]
[1722717125848,0.00157439,60663.0,60648.0,0.164885]
[1722717125849,0.00157439,60652.0,60650.0,0.164879]
[1722717126080,0.164867,60655.0,60650.0,0.164879]
[1722717126252,0.329727,60657.0,60653.0,0.001]
[1722717126253,0.16644339,60654.0,60653.0,0.001]
[1722717126389,0.168869,60654.0,60653.0,0.001]
[1722717127020,0.329727,60657.0,60653.0,0.001]
[1722717127378,0.329733,60655.0,60653.0,0.001]
[1722717127584,0.87981129,60654.0,60653.0,0.001]
[1722717127784,1.5985149,60654.0,60653.0,0.001]
[1722717128133,1.5985149,60654.0,60639.0,0.329816]
[1722717128134,0.164889,60647.0,60642.0,0.633301]
[1722717128334,0.164889,60647.0,60642.0,0.4684]
[1722717128550,0.164889,60647.0,60642.0,0.633301]
[1722717128735,0.005,60653.0,60645.0,0.164894]
[1722717128736,0.02586338,60646.0,60645.0,0.164894]
[1722717128936,0.02586338,60646.0,60645.0,0.5580114]
[1722717129136,0.02586338,60646.0,60645.0,0.8877994]
[1722717129588,0.329719,60658.0,60651.0,0.329753]
[1722717129589,0.00157439,60655.0,60651.0,0.329753]
[1722717129738,0.164859,60658.0,60653.0,0.164872]
[1722717129739,0.00157439,60657.0,60653.0,0.164872]